Cogmind - Beta 9.6 @@@ ROGUE MODE // 2020.06.23 @ 11:54:22 Player: Pimski Result: Destroyed by 0D-UJ0(Y) with Heavy Autocannon Performance ------------- Evolutions (5) 2500 Regions Visited (22) 4400 Robots Destroyed (204) 1020 Value Destroyed (3813) 3813 Prototype IDs (63) 1260 Alien Tech Used (0) 0 Bonus (-104) -104 TOTAL SCORE: 12889 Bonus ------- High Alert Combat Kills 22 Follower Combat Kills 160 Aligned with FarCom 300 Met Data Miner 300 Met Imprinter 300 Destroyed Z-Imprinter 1000 Met Warlord at Base 500 MAIN.C Attacked Warlord 500 Friendly Fire -3186 Cogmind --------- Core Integrity 0/1000 Matter 285/300 Energy 91/100 System Corruption 5% Temperature Cool (2) Movement Flying (35) Location -5/Warlord Parts ------- > --- POWER (2) -------- (None) > --- PROPULSION (5) --- Improved Cesium-ion Thruster > --- UTILITY (8) ------ Zionite Weapon Casing Deep Network Scanner > --- WEAPON (2) ------- Katana > --- INVENTORY (4) ---- Gravmag System Improved Cesium-ion Thruster Superbattery (1858) Zionite Metafield Generator Peak State ------------ > --- POWER ------------ Zionite Light DM Reactor Zionite Light DM Reactor > --- PROPULSION ------- Nuclear Pulse Array Nuclear Pulse Array Electron Diverter > --- UTILITY ---------- Experimental Heat Sink Medium Storage Unit Superbattery Advanced Reaction Control System Experimental Phase Shifter Zionite Weapon Casing Experimental Focal Shield Deep Network Scanner > --- WEAPON ----------- Field Lobotomy Kit Power Sword > --- INVENTORY -------- Vortex Chain Reactor Improved Cesium-ion Thruster Improved Cesium-ion Thruster Improved Cesium-ion Thruster Zionite Metafield Generator Long-range Sensor Array Advanced Phase Shifter [Rating: 131] Favorites ----------- Power Light Fission Core Engine Improved Ion Engine Power Core Light Fission Core Reactor Zionite Light DM Reactor Propulsion Light Treads Treads Light Treads Leg Aluminum Leg Wheel Wheel Flight Unit Improved VTOL Module Utility High-capacity Storage Unit Device Long-range Sensor Array Storage High-capacity Storage Unit Processor Advanced Signal Interpreter Hackware Hacking Suite Protection Improved Utility Shielding Weapon Improved Assault Rifle Energy Gun Small Laser Energy Cannon YOLO Cannon Ballistic Gun Improved Assault Rifle Launcher Shock Bomb Launcher Special Weapon Field Lobotomy Kit Slashing Weapon Power Sword Piercing Weapon Makeshift Spear Build | -11 -10 -10 -9 -9 -9 -8 -8 -7 -7 -7 -7 -6 -6 -6 -6 -6 -6 -5 -5 -5 -5 -5 ------- Run | Scr Mat Min Mat Min Exi Min Mat Fac Low Low Dat Pro Fac Low Low Zio Dee Pro Fac Upp Upp War Slots Evolved 10 | . . . 2 . . . 2 2 . . . . 2 . . . . . 2 . . . Power 1 | . . . . . . . . . . . . . . . . . . . 1 . . . Propulsion 3 | . . . . . . . . 2 . . . . . . . . . . 1 . . . Utility 6 | . . . 2 . . . 2 . . . . . 2 . . . . . . . . . Weapon . | . . . . . . . . . . . . . . . . . . . . . . . Parts Attached 194 | 1 6 2 27 . 28 . 35 17 1 1 1 5 14 . 4 1 16 . 11 1 2 21 Power 25 | . 1 1 4 . 3 . 5 1 . . . 1 1 . . . 3 . 1 . . 4 Engine 11 | . 1 1 4 . 2 . 2 . . . . 1 . . . . . . . . . . Core 5 | . . . . . . . 3 . . . . . 1 . . . 1 . . . . . Reactor 9 | . . . . . 1 . . 1 . . . . . . . . 2 . 1 . . 4 Propulsion 57 | . 2 . 6 . 6 . 10 8 . . . . 8 . . . 5 . 5 . . 7 Treads 22 | . 2 . 5 . 5 . 10 . . . . . . . . . . . . . . . Leg . | . . . . . . . . . . . . . . . . . . . . . . . Wheel 1 | . . . . . 1 . . . . . . . . . . . . . . . . . Hover . | . . . . . . . . . . . . . . . . . . . . . . . Flight 34 | . . . 1 . . . . 8 . . . . 8 . . . 5 . 5 . . 7 Utility 67 | . 1 . 10 . 10 . 11 5 . 1 . 2 3 . 1 1 6 . 5 1 2 8 Device 21 | . . . . . 1 . 1 1 . . . 1 . . 1 . 5 . 3 1 2 5 Storage 13 | . 1 . 6 . 2 . 1 1 . . . . 1 . . . 1 . . . . . Processor 5 | . . . . . . . 2 1 . . . . . . . 1 . . . . . 1 Hackware 5 | . . . . . . . . 2 . . . . 2 . . . . . 1 . . . Protection 23 | . . . 4 . 7 . 7 . . 1 . 1 . . . . . . 1 . . 2 Artifact . | . . . . . . . . . . . . . . . . . . . . . . . Weapon 45 | 1 2 1 7 . 9 . 9 3 1 . 1 2 2 . 3 . 2 . . . . 2 Energy Gun 4 | 1 . 1 1 . . . . 1 . . . . . . . . . . . . . . Energy Cannon 2 | . . . . . 2 . . . . . . . . . . . . . . . . . Ballistic Gun 21 | . 1 . 6 . 7 . 7 . . . . . . . . . . . . . . . Ballistic Cannon . | . . . . . . . . . . . . . . . . . . . . . . . Launcher 2 | . . . . . . . 2 . . . . . . . . . . . . . . . Special Weapon 6 | . . . . . . . . . . . 1 2 . . 1 . 1 . . . . 1 Impact Weapon . | . . . . . . . . . . . . . . . . . . . . . . . Slashing Weapon 9 | . 1 . . . . . . 2 . . . . 2 . 2 . 1 . . . . 1 Piercing Weapon 1 | . . . . . . . . . 1 . . . . . . . . . . . . . Special Melee Weapon . | . . . . . . . . . . . . . . . . . . . . . . . Unidentified Prototypes 18 | . . . 2 . 2 . 1 1 . . . . 2 . . . 4 . 1 . . 5 Parts Lost 48 | . . 1 1 . 11 . 18 . . . . . . . . . 3 . . . . 14 Power 8 | . . . 1 . 1 . 3 . . . . . . . . . 1 . . . . 2 Propulsion 14 | . . . . . 3 . 4 . . . . . . . . . 1 . . . . 6 Utility 15 | . . . . . 5 . 5 . . . . . . . . . . . . . . 5 Weapon 11 | . . 1 . . 2 . 6 . . . . . . . . . 1 . . . . 1 Highest Loss Streak 14 | . . 1 1 . 5 . 5 . . . . . . . . . 3 . . . . 14 Average Slot Usage (%) 96 | . 94 100 98 100 97 100 98 91 92 92 92 99 99 100 86 100 92 93 93 88 88 75 Engine 5 | . 14 14 10 11 10 11 4 . . . . 5 . . . . . . . . . . Core 2 | . . . . . . . 4 . . . . . 5 6 6 6 2 . . . . . Treads 11 | . 15 28 21 22 21 22 17 . . . . . . . . . . . . . . . Flight 12 | . . . . . . . . 28 30 30 30 30 26 26 26 26 25 26 28 23 23 17 Device 3 | . . . . . 1 . 3 6 7 6 . 5 6 6 . 6 10 20 11 17 17 17 Storage 19 | . 22 28 28 33 27 33 31 8 7 7 7 7 6 13 13 13 13 13 11 11 11 8 Processor 4 | . . . . . . . 6 14 15 15 15 8 6 6 6 9 8 6 4 . . . Hackware 9 | . . . . . . . . 14 15 15 15 15 25 20 20 16 13 13 16 11 11 5 Protection 8 | . . . 15 11 14 11 11 . . . 7 7 6 6 6 6 3 . . 5 5 4 Ballistic Gun 10 | . 13 14 21 22 19 22 17 . . . . . . . . . . . . . . . Slashing Weapon 3 | . . . . . . . . 6 3 . . . 11 13 . 13 8 6 5 5 5 7 Naked Turns . | . . . . . . . . . . . . . . . . . . . . . . . Heaviest Build 110 | 10 20 21 100 100 103 97 110 110 24 24 24 24 29 29 29 29 29 29 41 41 41 55 Greatest Support 53 | 20 40 40 40 40 40 40 40 40 24 24 24 24 30 30 30 30 32 32 44 44 44 53 Greatest Overweight (x) 9 | . . . 2 2 9 2 2 2 . . . . . . . . . . . . . 1 Average Overweight (x) . | . . . 1 2 2 2 2 . . . . . . . . . . . . . . . Largest Inventory Capacity 36 | 6 10 10 26 26 26 26 32 36 8 8 8 8 8 8 8 8 8 8 8 8 8 8 Average Capacity 15 | 6 8 10 19 26 23 26 29 9 8 8 8 8 8 8 8 8 8 8 8 8 8 7 Most Carried 32 | 6 10 10 26 26 26 26 32 32 8 8 8 8 8 7 8 8 8 8 8 8 8 8 Average Carried 15 | 6 7 9 19 26 21 25 28 9 8 7 7 7 7 7 7 7 7 8 7 8 8 6 Final Capacity 32 | 6 10 10 26 26 26 26 32 8 8 8 8 8 8 8 8 8 8 8 8 8 8 4 Final Carried 32 | 6 10 10 26 26 26 25 32 8 8 8 8 8 7 7 8 8 8 8 8 8 8 4 Class Distribution -------------------- 35% | Hauler-Mutant 34% | Wizard-Sprinter 12% | Mutant 9% | Hacker-Sprinter 5% | Scavenger-Mutant Dominant Class ---------------- Mutant | -10/Materials Mutant | -10/Mines Hauler-Mutant | -9/Materials Hauler-Mutant | -9/Mines Hauler-Mutant | -9/Exiles Hauler-Mutant | -8/Mines Hauler-Mutant | -8/Materials Hacker-Sprinter | -7/Factory Hacker-Sprinter | -7/Lower Caves Hacker-Sprinter | -7/Lower Caves Hacker-Sprinter | -7/Data Miner Hacker-Sprinter | -6/Proximity Caves Wizard-Sprinter | -6/Factory Wizard-Sprinter | -6/Lower Caves Wizard-Sprinter | -6/Lower Caves Wizard-Sprinter | -6/Zion Hacker-Sprinter | -6/Deep Caves Hacker-Sprinter | -5/Proximity Caves Wizard-Sprinter | -5/Factory Hacker-Sprinter | -5/Upper Caves Hacker-Sprinter | -5/Upper Caves Hacker-Sprinter | -5/Warlord Resources | -11 -10 -10 -9 -9 -9 -8 -8 -7 -7 -7 -7 -6 -6 -6 -6 -6 -6 -5 -5 -5 -5 -5 ----------- Run | Scr Mat Min Mat Min Exi Min Mat Fac Low Low Dat Pro Fac Low Low Zio Dee Pro Fac Upp Upp War Matter Collected 4319 | 218 54 46 1045 . 696 100 1305 160 20 . . 50 140 . 7 63 125 20 27 . 42 201 Remotely . | . . . . . . . . . . . . . . . . . . . . . . . Salvage Created 11072 | 57 297 47 2133 . 377 159 2894 202 . . . 30 4347 . . . 252 . . . . 277 Parts 482 | . 14 1 137 . 53 10 156 8 . . . 3 80 . . . 14 . . . . 6 Haulers Intercepted 14 | . . . 6 . . . 4 1 . . . . 3 . . . . . . . . . Recyclers Shooed 21 | . . 1 3 . . 1 2 . . . . . 14 . . . . . . . . . Parts Field Recycled . | . . . . . . . . . . . . . . . . . . . . . . . Retrieved Matter . | . . . . . . . . . . . . . . . . . . . . . . . Parts Self-Destructed 46 | . . . . . . . . . . 9 . . . . . . . . . . . 37 Prevented 10 | . . . . . . . . . . . . . . . . . . . . . . 10 Kills | -11 -10 -10 -9 -9 -9 -8 -8 -7 -7 -7 -7 -6 -6 -6 -6 -6 -6 -5 -5 -5 -5 -5 ------- Run | Scr Mat Min Mat Min Exi Min Mat Fac Low Low Dat Pro Fac Low Low Zio Dee Pro Fac Upp Upp War Combat Hostiles Destroyed 91 | . 5 1 30 . 3 7 40 . . . . . . . . . 2 . . . . 3 Melee 5 | . . . . . . . . . . . . . . . . . 2 . . . . 3 Guns 81 | . 5 1 30 . 1 7 37 . . . . . . . . . . . . . . . Cannons 1 | . . . . . 1 . . . . . . . . . . . . . . . . . AOE 4 | . . . . . 1 . 3 . . . . . . . . . . . . . . . Classes Destroyed 18 | 1 1 1 6 . 3 . 3 . . . . . . . . . 1 . . . . 2 Worker 12 | . . . 3 . . . 5 2 . . . . 2 . . . . . . . . . Builder 1 | . . . . . . . 1 . . . . . . . . . . . . . . . Hauler 14 | . . . 6 . . . 4 1 . . . . 3 . . . . . . . . . Recycler 49 | 1 1 . 7 . . 1 8 1 . . . . 30 . . . . . . . . . Mechanic 1 | . . . . . . . 1 . . . . . . . . . . . . . . . Operator 1 | . . . 1 . . . . . . . . . . . . . . . . . . . Turret 1 | . . . . . 1 . . . . . . . . . . . . . . . . . Watcher 10 | . . . 4 . . . 5 1 . . . . . . . . . . . . . . Swarmer 26 | . . . 9 . . 7 10 . . . . . . . . . . . . . . . Grunt 39 | . 5 . 12 . . . 22 . . . . . . . . . . . . . . . Brawler 1 | . . . 1 . . . . . . . . . . . . . . . . . . . Sentry 16 | . . 1 8 . . . 7 . . . . . . . . . . . . . . . Hunter 1 | . . . . . . . 1 . . . . . . . . . . . . . . . Zionite 8 | . . . . . 8 . . . . . . . . . . . . . . . . . Z-Technician 5 | . . . . . . . . . . . . . . . . . 5 . . . . . Z-Light 2 | . . . . . . . . . . . . . . . . . 2 . . . . . Assembled 9 | . . . . . 7 . . . . . . . . . . . 2 . . . . . Butcher 2 | . . . . . . . . . . . . . . . . . . . . . . 2 Wizard 1 | . . . . . . . . . . . . . . . . . . . . . . 1 Best Kill Streak 10 | 1 3 1 7 . 9 4 10 2 . . . . 2 . . . 5 . . . . 1 Combat Bots Only 6 | . 2 1 4 . 2 4 6 . . . . . . . . . 2 . . . . 1 Max Kills in Single Turn 5 | 1 1 1 2 . 5 2 2 1 . . . 1 1 . . . 1 . . . . 1 Gunslinging 1 | . . . 1 . . 1 1 . . . . . . . . . . . . . . . Exploded 2 | . . . . . 1 . 2 . . . . . . . . . . . . . . . Melee 1 | . . . . . . . . . . . . . . . . . 1 . . . . 1 Uniques/NPCs Destroyed 4 | . . . . . 2 . . . . . . 1 . . . . 1 . . . . . 8R-AWN (-9/Exiles) EX-DEC (-9/Exiles) EX-HEX (-9/Exiles) EX-BIN (-9/Exiles) Data Miner (-6/Proximity Caves) Z-Imprinter (-6/Deep Caves) Combat | -11 -10 -10 -9 -9 -9 -8 -8 -7 -7 -7 -7 -6 -6 -6 -6 -6 -6 -5 -5 -5 -5 -5 -------- Run | Scr Mat Min Mat Min Exi Min Mat Fac Low Low Dat Pro Fac Low Low Zio Dee Pro Fac Upp Upp War Damage Taken 10042 | . 170 69 955 . 2279 210 2953 112 37 142 . 124 60 . . . 716 . 19 . 27 2169 Core 2049 | . 37 . 92 . 219 18 288 33 . 74 . 31 15 . . . 203 . 19 . . 1020 Absorbed by Shields 53 | . . . . . . . . . . . . . . . . . . . . . . 53 Core Remaining (%) 67 | 100 . 85 . . . 17 47 . . . . 80 . . . . . 74 . . . . Volleys Fired 412 | 8 14 6 105 . 78 15 174 . . . 1 7 . . . . 3 . . . . 1 Largest 2 | 2 2 2 2 . 2 2 2 . . . 1 1 . . . . 1 . . . . 1 Hottest 100 | 60 60 85 46 . 100 46 46 . . . . 20 . . . . . . . . . . Shots Fired 802 | 16 28 12 210 . 149 30 345 . . . 1 7 . . . . 3 . . . . 1 Gun 783 | 16 28 12 210 . 145 30 342 . . . . . . . . . . . . . . . Cannon 4 | . . . . . 4 . . . . . . . . . . . . . . . . . Launcher 3 | . . . . . . . 3 . . . . . . . . . . . . . . . Special 12 | . . . . . . . . . . . 1 7 . . . . 3 . . . . 1 Kinetic 755 | 8 14 6 210 . 145 30 342 . . . . . . . . . . . . . . . Thermal 31 | . 14 6 . . 4 . . . . . . 7 . . . . . . . . . . Explosive . | . . . . . . . . . . . . . . . . . . . . . . . Electromagnetic 11 | 8 . . . . . . 3 . . . . . . . . . . . . . . . Robot Hit Streak 45 | 2 12 9 30 . 32 9 45 . . . 5 6 . . . . 2 . . . . 3 Robot Miss Streak 3 | 3 1 1 3 . 2 2 3 . . . . 1 . . . . 1 . . . . . Penetration Max . | . . . . . . . . . . . . . . . . . . . . . . . Secondary Targets 16 | . . . 5 . 1 3 7 . . . . . . . . . . . . . . . Max Gunslinging Chain 1 | . . . 1 . 1 1 1 . . . . . . . . . . . . . . . Shots Hit Robots 786 | 6 23 10 161 . 126 20 284 12 . . 1 6 80 . . . 18 . . . . 39 Core Hits 319 | 2 13 2 71 . 42 8 120 5 . . . 3 37 . . . 7 . . . . 9 Critical Hits 12 | . . . 1 . 1 . 6 . . . . 1 2 . . . . . . . . 1 Critical Kills 6 | . . . 1 . 1 . 2 . . . . . 2 . . . . . . . . . Critical Parts Destroyed 6 | . . . . . . . 4 . . . . 1 . . . . . . . . . 1 Melee Attacks 295 | . 4 . . . . . . 25 4 . . 17 115 4 1 13 39 2 19 . 1 51 Impact . | . . . . . . . . . . . . . . . . . . . . . . . Slashing 266 | . 4 . . . . . . 25 . . . . 107 4 1 13 39 2 19 . 1 51 Piercing 29 | . . . . . . . . . 4 . . 17 8 . . . . . . . . . Sneak Attacks 60 | . . . . . . . . 4 . . . . 43 . . . 12 . . . . 1 Combat Hostiles 1 | . . . . . . . . . . . . . . . . . 1 . . . . . Follow-up Attacks 14 | . . . . . . . . . . . . . 10 . . . . . . . . 4 Damage Inflicted 22062 | 110 232 121 2474 . 2725 287 4392 775 . . . 66 7164 . . . 1980 . . . . 1736 Guns 9151 | 71 229 108 2474 . 1803 287 4179 . . . . . . . . . . . . . . . Cannons 368 | . . . . . 368 . . . . . . . . . . . . . . . . . Explosions 783 | 39 . . . . 554 . 190 . . . . . . . . . . . . . . . Melee 11655 | . . . . . . . . 775 . . . . 7164 . . . 1980 . . . . 1736 Ramming 39 | . 3 13 . . . . 23 . . . . . . . . . . . . . . . Kinetic 8897 | 43 79 32 2474 . 1803 287 4179 . . . . . . . . . . . . . . . Thermal 1329 | 39 150 76 . . 922 . 76 . . . . 66 . . . . . . . . . . Explosive . | . . . . . . . . . . . . . . . . . . . . . . . Electromagnetic 142 | 28 . . . . . . 114 . . . . . . . . . . . . . . . Impact . | . . . . . . . . . . . . . . . . . . . . . . . Slashing 11559 | . . . . . . . . 775 . . . . 7068 . . . 1980 . . . . 1736 Piercing 96 | . . . . . . . . . . . . . 96 . . . . . . . . . Highest Corruption 9 | . . . . . 9 . . . . . . . . . . . . . . . . 5 Average Corruption 4 | . . . . . 5 . . . . . . . . . . . . . . . . 2 Corruption Purged 9 | . . . . . 9 . . . . . . . . . . . . . . . . . Effects 24 | . . . . . 22 . . . . . . . . . . . . . . . . 2 Message Errors 3 | . . . . . 3 . . . . . . . . . . . . . . . . . Matter Fused 4 | . . . . . 4 . . . . . . . . . . . . . . . . . Energy Discharges 5 | . . . . . 4 . . . . . . . . . . . . . . . . 1 Data Loss (minor) 1 | . . . . . 1 . . . . . . . . . . . . . . . . . Targeting Errors 8 | . . . . . 7 . . . . . . . . . . . . . . . . 1 Weapon Failures 3 | . . . . . 3 . . . . . . . . . . . . . . . . . Overload Shots . | . . . . . . . . . . . . . . . . . . . . . . . Overflow Damage 2740 | . . . . . . . . 193 . . . . 1642 . . . 722 . . . . 183 Projectiles . | . . . . . . . . . . . . . . . . . . . . . . . Explosions . | . . . . . . . . . . . . . . . . . . . . . . . Melee 2740 | . . . . . . . . 193 . . . . 1642 . . . 722 . . . . 183 Knockbacks . | . . . . . . . . . . . . . . . . . . . . . . . Impact . | . . . . . . . . . . . . . . . . . . . . . . . Kinetic . | . . . . . . . . . . . . . . . . . . . . . . . Secondary . | . . . . . . . . . . . . . . . . . . . . . . . Self-Inflicted Damage . | . . . . . . . . . . . . . . . . . . . . . . . Shots . | . . . . . . . . . . . . . . . . . . . . . . . Rammed 8 | . 1 3 1 . . . 3 . . . . . . . . . . . . . . . Targets Rammed 8 | . 1 3 1 . . . 3 . . . . . . . . . . . . . . . Kicked . | . . . . . . . . . . . . . . . . . . . . . . . Crushed . | . . . . . . . . . . . . . . . . . . . . . . . Highest Temperature 194 | 40 76 145 120 . 155 . 194 . . 4 . . 3 . . . 7 . 153 2 38 81 Average Temperature 43 | 19 42 83 26 . 54 . 43 . . 4 . . 2 . . . 4 . 51 2 17 31 Received Heat Transfer 2299 | . 93 18 273 . . . 1386 9 18 54 . 12 . . . . 189 . 9 . . 238 Siege Activations . | . . . . . . . . . . . . . . . . . . . . . . . Robots Corrupted . | . . . . . . . . . . . . . . . . . . . . . . . Combat Hostiles . | . . . . . . . . . . . . . . . . . . . . . . . Parts Fried 1 | . . . . . . . 1 . . . . . . . . . . . . . . . Impact Corruptions . | . . . . . . . . . . . . . . . . . . . . . . . Robots Melted 1 | . . . . . 1 . . . . . . . . . . . . . . . . . Combat Hostiles . | . . . . . . . . . . . . . . . . . . . . . . . Parts Melted 3 | . . 1 . . . . . . . . . 2 . . . . . . . . . . Heat Transferred 1792 | 50 325 185 . . 960 . 50 . . . . 222 . . . . . . . . . . Parts Sabotaged . | . . . . . . . . . . . . . . . . . . . . . . . Parts Stolen . | . . . . . . . . . . . . . . . . . . . . . . . Parts Stripped . | . . . . . . . . . . . . . . . . . . . . . . . Power Chain Reactions 2 | 1 . . . . . . 1 . . . . . . . . . . . . . . . Missiles Intercepted . | . . . . . . . . . . . . . . . . . . . . . . . Alert | -11 -10 -10 -9 -9 -9 -8 -8 -7 -7 -7 -7 -6 -6 -6 -6 -6 -6 -5 -5 -5 -5 -5 ------- Run | Scr Mat Min Mat Min Exi Min Mat Fac Low Low Dat Pro Fac Low Low Zio Dee Pro Fac Upp Upp War Peak Influence 441 | 5 184 71 441 127 . 116 336 237 . . . . 123 . . . . . 101 . . . Average Influence 113 | 3 80 40 220 127 . 72 202 138 . . . . 20 . . . . . 45 . . . Maximum Alert Level 2 | . . . 2 . . . 1 1 . . . . . . . . . . . . . . Low Security (%) 75 | 100 100 100 38 100 . 100 51 84 . . . . 100 . . . . . 100 . . . Level 1 23 | . . . 59 . . . 48 15 . . . . . . . . . . . . . . Level 2 . | . . . 1 . . . . . . . . . . . . . . . . . . . Level 3 . | . . . . . . . . . . . . . . . . . . . . . . . Level 4 . | . . . . . . . . . . . . . . . . . . . . . . . Level 5 . | . . . . . . . . . . . . . . . . . . . . . . . High Security . | . . . . . . . . . . . . . . . . . . . . . . . Max Security . | . . . . . . . . . . . . . . . . . . . . . . . Squads Dispatched 18 | . 2 . 4 . . 1 3 2 . . . . 4 . . . . . 2 . . . Investigation 7 | . 1 . 1 . . 1 1 2 . . . . . . . . . . 1 . . . Extermination 5 | . . . . . . . . . . . . . 4 . . . . . 1 . . . Reinforcement 6 | . 1 . 3 . . . 2 . . . . . . . . . . . . . . . Assault . | . . . . . . . . . . . . . . . . . . . . . . . Garrison . | . . . . . . . . . . . . . . . . . . . . . . . Intercept . | . . . . . . . . . . . . . . . . . . . . . . . Construction Impeded . | . . . . . . . . . . . . . . . . . . . . . . . Haulers Reinforced . | . . . . . . . . . . . . . . . . . . . . . . . Stealth | -11 -10 -10 -9 -9 -9 -8 -8 -7 -7 -7 -7 -6 -6 -6 -6 -6 -6 -5 -5 -5 -5 -5 --------- Run | Scr Mat Min Mat Min Exi Min Mat Fac Low Low Dat Pro Fac Low Low Zio Dee Pro Fac Upp Upp War Distress Signals 11 | . . . 6 . . . 2 . . . . . 1 . . . . . 2 . . . Communications Jammed . | . . . . . . . . . . . . . . . . . . . . . . . Distress Signals . | . . . . . . . . . . . . . . . . . . . . . . . Times Spotted 262 | . 8 2 46 . 26 8 55 7 3 13 . 5 13 . . . 6 1 7 . 1 61 Peak Tracking Total 46 | . 3 2 5 . 6 4 6 4 3 9 . 5 5 . . . 3 1 4 . 1 46 Tactical Retreats 32 | . 1 . 1 . 13 . 3 2 . 3 . . 3 . . . . 1 1 . . 4 Traps | -11 -10 -10 -9 -9 -9 -8 -8 -7 -7 -7 -7 -6 -6 -6 -6 -6 -6 -5 -5 -5 -5 -5 ------- Run | Scr Mat Min Mat Min Exi Min Mat Fac Low Low Dat Pro Fac Low Low Zio Dee Pro Fac Upp Upp War Traps Triggered 6 | . 1 . 1 . . . . 2 . . . . 2 . . . . . . . . . Indirectly . | . . . . . . . . . . . . . . . . . . . . . . . Trap Hack Attempts . | . . . . . . . . . . . . . . . . . . . . . . . Triggered . | . . . . . . . . . . . . . . . . . . . . . . . Disarmed . | . . . . . . . . . . . . . . . . . . . . . . . Reprogrammed . | . . . . . . . . . . . . . . . . . . . . . . . Reused . | . . . . . . . . . . . . . . . . . . . . . . . Traps Extracted . | . . . . . . . . . . . . . . . . . . . . . . . Installed . | . . . . . . . . . . . . . . . . . . . . . . . Triggered 8 | . . . . . . . . . . 6 . . . . . . . . . . . 2 Machines | -11 -10 -10 -9 -9 -9 -8 -8 -7 -7 -7 -7 -6 -6 -6 -6 -6 -6 -5 -5 -5 -5 -5 ---------- Run | Scr Mat Min Mat Min Exi Min Mat Fac Low Low Dat Pro Fac Low Low Zio Dee Pro Fac Upp Upp War Machines Disabled 14 | . . 1 3 . 6 . 2 . . . . . . . . . 1 . . . . 1 Max in Single Turn 1 | . . . 1 . 1 . 1 . . . . . . . . . 1 . . . . . Garrison Access 5 | . . . . . . . 1 2 . . . . 2 . . . . . . . . . Machines Sabotaged . | . . . . . . . . . . . . . . . . . . . . . . . Garrisons Compromised . | . . . . . . . . . . . . . . . . . . . . . . . Overloaded Fab Kills . | . . . . . . . . . . . . . . . . . . . . . . . Fab Network Shutdowns . | . . . . . . . . . . . . . . . . . . . . . . . Hacking | -11 -10 -10 -9 -9 -9 -8 -8 -7 -7 -7 -7 -6 -6 -6 -6 -6 -6 -5 -5 -5 -5 -5 --------- Run | Scr Mat Min Mat Min Exi Min Mat Fac Low Low Dat Pro Fac Low Low Zio Dee Pro Fac Upp Upp War Machines Accessed 66 | . 3 . 11 . 2 1 10 10 . . 4 . 12 . 1 . . . 8 . . 4 Terminals 35 | . 3 . 8 . . 1 6 5 . . . . 7 . . . . . 5 . . . Fabricators 6 | . . . . . . . . 2 . . . . 2 . . . . . 2 . . . Repair Stations 5 | . . . 1 . . . 1 1 . . . . 1 . . . . . 1 . . . Recycling Units 1 | . . . 1 . . . . . . . . . . . . . . . . . . . Scanalyzers 3 | . . . 1 . . . 2 . . . . . . . . . . . . . . . Garrison Access 5 | . . . . . . . 1 2 . . . . 2 . . . . . . . . . Total Hacks 240 | . 11 . 39 . 2 5 33 26 . . 29 . 58 . 1 . . . 28 . . 8 Successful 168 | . 4 . 25 . 2 2 22 19 . . 29 . 37 . 1 . . . 19 . . 8 Failed 70 | . 7 . 14 . . 2 11 6 . . . . 21 . . . . . 9 . . . Catastrophic 10 | . . . 1 . . . 2 . . . . . 5 . . . . . 2 . . . Database Lockouts 2 | . . . . . . 1 . 1 . . . . . . . . . . . . . . Manual 98 | . 6 . 9 . 1 5 11 11 . . . . 40 . . . . . 14 . . 1 Terminals 131 | . 11 . 25 . . 5 19 17 . . . . 39 . . . . . 15 . . . Fabricators 27 | . . . . . . . . 4 . . . . 15 . . . . . 8 . . . Repair Stations 23 | . . . 8 . . . 6 2 . . . . 2 . . . . . 5 . . . Recycling Units 1 | . . . 1 . . . . . . . . . . . . . . . . . . . Scanalyzers 12 | . . . 5 . . . 7 . . . . . . . . . . . . . . . Garrison Access 6 | . . . . . . . 1 3 . . . . 2 . . . . . . . . . Terminal Hacks 83 | . 3 . 11 . 2 2 4 8 . . 29 . 11 . 1 . . . 4 . . 8 Record 19 | . . . . . 1 . . . . . 11 . . . . . . . . . . 7 Part Schematic 14 | . . . . . . . . 1 . . 9 . 3 . . . . . 1 . . . Robot Schematic 6 | . . . . . . . . . . . 6 . . . . . . . . . . . Robot Analysis 4 | . 2 . 1 . . 1 . . . . . . . . . . . . . . . . Prototype ID Bank 9 | . 1 . 3 . . . . 1 . . 3 . 1 . . . . . . . . . Open Door 2 | . . . . . . . . . . . . . . . 1 . . . . . . 1 Branch Access Points 3 | . . . 1 . . . . 1 . . . . . . . . . . 1 . . . Machine Index 2 | . . . . . . . . . . . . . 1 . . . . . 1 . . . Fabricator Index 1 | . . . . . . . . . . . . . 1 . . . . . . . . . Repair Station Index 1 | . . . . . . . . 1 . . . . . . . . . . . . . . Alert Level 3 | . . . 1 . . . . 1 . . . . 1 . . . . . . . . . Unreport Threat 3 | . . . 1 . . . 2 . . . . . . . . . . . . . . . Locate Traps 2 | . . . 1 . . . . . . . . . 1 . . . . . . . . . Recall Investigation 2 | . . . . . . 1 . 1 . . . . . . . . . . . . . . Recall Extermination 4 | . . . . . . . . . . . . . 3 . . . . . 1 . . . Hauler Manifests 3 | . . . 1 . . . 1 1 . . . . . . . . . . . . . . Registered Components 1 | . . . 1 . . . . . . . . . . . . . . . . . . . Registered Prototypes 1 | . . . 1 . . . . . . . . . . . . . . . . . . . Zone Layout 2 | . . . . . . . 1 1 . . . . . . . . . . . . . . EX-Prototype ID Bank 1 | . . . . . 1 . . . . . . . . . . . . . . . . . Fabricator Hacks 17 | . . . . . . . . 2 . . . . 12 . . . . . 3 . . . Load Schematic 5 | . . . . . . . . 1 . . . . 2 . . . . . 2 . . . Build 12 | . . . . . . . . 1 . . . . 10 . . . . . 1 . . . Repair Station Hacks 22 | . . . 8 . . . 6 2 . . . . 2 . . . . . 4 . . . Scan Component 11 | . . . 4 . . . 3 1 . . . . 1 . . . . . 2 . . . Repair 11 | . . . 4 . . . 3 1 . . . . 1 . . . . . 2 . . . Recycling Unit Hacks . | . . . . . . . . . . . . . . . . . . . . . . . Scanalyzer 12 | . . . 5 . . . 7 . . . . . . . . . . . . . . . Insert Component 5 | . . . 2 . . . 3 . . . . . . . . . . . . . . . Analyze 7 | . . . 3 . . . 4 . . . . . . . . . . . . . . . Garrison Access Hacks 5 | . . . . . . . 1 2 . . . . 2 . . . . . . . . . Seal Access 5 | . . . . . . . 1 2 . . . . 2 . . . . . . . . . Unauthorized Hacks 29 | . 1 . 1 . . . 4 5 . . . . 10 . . . . . 8 . . . Terminals 22 | . 1 . 1 . . . 4 3 . . . . 8 . . . . . 5 . . . Track 5 | . . . . . . . 1 . . . . . 3 . . . . . 1 . . . Assimilate 2 | . . . . . . . . 1 . . . . . . . . . . 1 . . . Botnet 14 | . 1 . 1 . . . 3 2 . . . . 4 . . . . . 3 . . . Operators 1 | . . . . . . . . . . . . . 1 . . . . . . . . . Fabricators 7 | . . . . . . . . 2 . . . . 2 . . . . . 3 . . . Report 2 | . . . . . . . . . . . . . 1 . . . . . 1 . . . Siphon 3 | . . . . . . . . 1 . . . . 1 . . . . . 1 . . . Haulers 2 | . . . . . . . . 1 . . . . . . . . . . 1 . . . Repair Stations . | . . . . . . . . . . . . . . . . . . . . . . . Recycling Units . | . . . . . . . . . . . . . . . . . . . . . . . Scanalyzers . | . . . . . . . . . . . . . . . . . . . . . . . Garrison Access . | . . . . . . . . . . . . . . . . . . . . . . . Data Cores Recovered . | . . . . . . . . . . . . . . . . . . . . . . . Used . | . . . . . . . . . . . . . . . . . . . . . . . Hacking Detections 43 | . 3 . 11 . . . 9 7 . . . . 7 . . . . . 6 . . . Full Trace Events 3 | . . . . . . . 1 1 . . . . . . . . . . 1 . . . Feedback Events . | . . . . . . . . . . . . . . . . . . . . . . . Feedback Blocked . | . . . . . . . . . . . . . . . . . . . . . . . Robot Schematics Acquired 6 | . . . . . . . . . . . 6 . . . . . . . . . . . Robots Built . | . . . . . . . . . . . . . . . . . . . . . . . Matter . | . . . . . . . . . . . . . . . . . . . . . . . Time . | . . . . . . . . . . . . . . . . . . . . . . . Total Robot Build Rating . | . . . . . . . . . . . . . . . . . . . . . . . Part Schematics Acquired 19 | . . . 2 . . . 3 1 . . 9 . 3 . . . . . 1 . . . Parts Built 9 | . . . . . . . . 2 . . . . 5 . . . . . 2 . . . Matter 1518 | . . . . . . . . 109 . . . . 1197 . . . . . 212 . . . Time 822 | . . . . . . . . 73 . . . . 714 . . . . . 35 . . . Total Part Build Rating 38 | . . . . . . . . 6 . . . . 20 . . . . . 12 . . . Parts Repaired 11 | . . . 4 . . . 3 1 . . . . 1 . . . . . 2 . . . Time 493 | . . . 135 . . . 198 60 . . . . 30 . . . . . 70 . . . Parts Recycled . | . . . . . . . . . . . . . . . . . . . . . . . Recycled Matter . | . . . . . . . . . . . . . . . . . . . . . . . Retrieved Matter . | . . . . . . . . . . . . . . . . . . . . . . . Retrieved Components . | . . . . . . . . . . . . . . . . . . . . . . . Parts Scanalyzed 5 | . . . 2 . . . 3 . . . . . . . . . . . . . . . Part Schematics Acquired 5 | . . . 2 . . . 3 . . . . . . . . . . . . . . . Parts Damaged . | . . . . . . . . . . . . . . . . . . . . . . . Bothacking | -11 -10 -10 -9 -9 -9 -8 -8 -7 -7 -7 -7 -6 -6 -6 -6 -6 -6 -5 -5 -5 -5 -5 ------------ Run | Scr Mat Min Mat Min Exi Min Mat Fac Low Low Dat Pro Fac Low Low Zio Dee Pro Fac Upp Upp War Used RIF Installer . | . . . . . . . . . . . . . . . . . . . . . . . Robots Hacked . | . . . . . . . . . . . . . . . . . . . . . . . Non-combat . | . . . . . . . . . . . . . . . . . . . . . . . Combat . | . . . . . . . . . . . . . . . . . . . . . . . Robot Hacks Applied . | . . . . . . . . . . . . . . . . . . . . . . . Relay Couplers Released . | . . . . . . . . . . . . . . . . . . . . . . . Robots Rewired 5 | . . . . . . . . 1 . . . . . . . . . . . . . 4 Allies Hacked . | . . . . . . . . . . . . . . . . . . . . . . . Hacks Repelled . | . . . . . . . . . . . . . . . . . . . . . . . Allies | -11 -10 -10 -9 -9 -9 -8 -8 -7 -7 -7 -7 -6 -6 -6 -6 -6 -6 -5 -5 -5 -5 -5 -------- Run | Scr Mat Min Mat Min Exi Min Mat Fac Low Low Dat Pro Fac Low Low Zio Dee Pro Fac Upp Upp War Total Allies 19 | . . 3 . . . . . 2 . . 1 . 3 . . 2 2 . 1 . . 5 Largest Group 3 | . . 3 1 . . . . 2 2 1 1 1 3 . . 2 2 . 1 . . 3 Highest-Rated Group 158 | . . 40 8 . . . . 42 42 10 59 59 93 . . 51 140 . 26 . . 158 Highest-Rated Ally 158 | . . 16 8 . . . . 32 32 10 59 59 31 . . 31 70 . 26 . . 158 Total Orders 5 | . . . . . . . . 4 . . . . . . . . . . . . 1 . STAY 2 | . . . . . . . . 2 . . . . . . . . . . . . . . FOLLOW 2 | . . . . . . . . 2 . . . . . . . . . . . . . . RETURN 1 | . . . . . . . . . . . . . . . . . . . . . 1 . Ally Attacks 82 | . . 13 10 . . . . . . . . . 17 . . . 21 . . . . 21 Total Damage 2198 | . . 153 64 . . . . . . . . . 264 . . . 343 . . . . 1374 Kills 13 | . . 1 2 . . . . . . . . . 5 . . . 2 . . . . 3 Allies Corrupted 1 | . . . . . . . . . . . . . . . . . . . . . . 1 Allies Melted . | . . . . . . . . . . . . . . . . . . . . . . . Turrets Deployed 1 | . . . . . . . . . . . . . . . . . . . . . . 1 Field Lobotomies 4 | . . . . . . . . . . . 1 . . . . . 2 . . . . 1 Intel | -11 -10 -10 -9 -9 -9 -8 -8 -7 -7 -7 -7 -6 -6 -6 -6 -6 -6 -5 -5 -5 -5 -5 ------- Run | Scr Mat Min Mat Min Exi Min Mat Fac Low Low Dat Pro Fac Low Low Zio Dee Pro Fac Upp Upp War Robot Analysis Total 4 | . 2 . 1 . . 1 . . . . . . . . . . . . . . . . Derelict Logs Recovered 13 | . . 1 . 1 . . . . 1 2 . 1 . 2 1 1 . 1 . 1 1 . Drone Launches 3 | . . . . . . . . . . . . . . . . . . . . . 3 . Drone Recoveries . | . . . . . . . . . . . . . . . . . . . . . . . Exploration | -11 -10 -10 -9 -9 -9 -8 -8 -7 -7 -7 -7 -6 -6 -6 -6 -6 -6 -5 -5 -5 -5 -5 ------------- Run | Scr Mat Min Mat Min Exi Min Mat Fac Low Low Dat Pro Fac Low Low Zio Dee Pro Fac Upp Upp War Turns Passed 19996 | 60 387 890 2839 86 2964 620 2822 471 119 152 46 175 4539 70 1883 379 398 101 436 79 86 394 Spaces Moved 13351 | 31 216 527 1164 44 1119 287 964 908 314 522 89 322 2238 229 375 830 777 304 882 286 261 662 Core . | . . . . . . . . . . . . . . . . . . . . . . . Treads 4154 | . 79 527 1164 44 1082 287 964 7 . . . . . . . . . . . . . . Legs 168 | 31 137 . . . . . . . . . . . . . . . . . . . . . Wheels 37 | . . . . . 37 . . . . . . . . . . . . . . . . . Hover . | . . . . . . . . . . . . . . . . . . . . . . . Flight 8992 | . . . . . . . . 901 314 522 89 322 2238 229 375 830 777 304 882 286 261 662 Fastest Speed 13 | 120 120 160 160 200 170 200 200 26 26 26 26 26 26 26 26 26 26 27 13 13 13 15 Average Speed 78 | 120 134 160 184 200 197 200 200 27 26 26 26 26 26 26 26 26 26 27 23 26 25 29 Slowest Speed 200 | 120 160 160 200 200 200 200 200 200 26 26 26 26 26 26 26 26 27 27 24 27 27 107 Overloaded Moves . | . . . . . . . . . . . . . . . . . . . . . . . Propulsion Burnouts . | . . . . . . . . . . . . . . . . . . . . . . . Robots Hopped 81 | . . . . . . . . 4 . 4 . . 44 2 . . . . 10 1 . 16 Cave-ins Triggered . | . . . . . . . . . . . . . . . . . . . . . . . Exploration Rate (%) 55 | 3 35 93 91 14 84 62 76 25 50 80 74 57 32 45 44 84 80 52 25 53 42 65 Regions Visited 22 Branch Regions 16 Pre-discovered Areas 9 | . . 1 . . 1 . . . 1 . 1 . . 1 . 2 . . . . 1 1 Known Exits Taken 13 | . . . 1 . . . . 1 1 1 1 1 1 1 1 1 1 1 1 . . . Unknown Exits Taken 9 | 1 1 1 . 1 1 1 1 . . . . . . . . . . . . 1 1 . Scrap Searched 16 | . . 1 . . . 1 . . 3 2 . 1 . . . 4 . 2 . 1 1 . Spaces Dug 99 | . 2 . . . . . . 13 3 . . 17 16 4 1 4 11 2 19 . 1 6 Terrain Destroyed 128 | 2 2 . . . 24 . 3 13 3 . . 17 16 4 1 4 11 2 19 . 1 6 Melee 99 | . 2 . . . . . . 13 3 . . 17 16 4 1 4 11 2 19 . 1 6 Projectile . | . . . . . . . . . . . . . . . . . . . . . . . AOE 29 | 2 . . . . 24 . 3 . . . . . . . . . . . . . . . Actions | -11 -10 -10 -9 -9 -9 -8 -8 -7 -7 -7 -7 -6 -6 -6 -6 -6 -6 -5 -5 -5 -5 -5 --------- Run | Scr Mat Min Mat Min Exi Min Mat Fac Low Low Dat Pro Fac Low Low Zio Dee Pro Fac Upp Upp War Total 21693 | 39 278 562 1661 43 1729 306 1593 1112 346 534 109 381 6007 230 2157 975 906 319 1069 285 277 775 Wait 7184 | . 27 21 290 . 435 1 359 134 27 12 18 26 3667 . 1775 131 59 14 153 . 13 22 Move 13181 | 30 215 526 1163 43 1118 286 963 900 313 515 88 321 2155 224 374 829 776 303 861 283 260 635 Hop 67 | . . . . . . . . 3 . 2 . . 38 2 . . . . 10 1 . 11 Pick Up 151 | . 7 2 36 . 32 2 38 2 . 2 . 2 8 . 1 1 4 . 7 . . 7 Fast Attach 57 | . 1 . 12 . 7 . 8 1 1 . . 2 5 . 2 1 6 . 2 . . 9 Attach 84 | . . 1 . . 18 . 20 16 . . 1 2 6 . . . 3 . 6 . . 11 Detach 18 | . . . 1 . 7 . 1 1 . . 1 . . . . . 1 . 1 . . 5 Swap 53 | 1 5 1 15 . 3 . 7 . . 1 . 1 3 . 2 . 7 . 3 1 2 1 Drop 174 | . 4 2 38 . 31 2 20 24 1 2 . 3 11 . 2 2 10 . 7 . . 15 Fire 412 | 8 14 6 105 . 78 15 174 . . . 1 7 . . . . 3 . . . . 1 Melee 268 | . 4 . . . . . . 25 4 . . 17 96 4 1 11 37 2 19 . 1 47 Ram . | . . . . . . . . . . . . . . . . . . . . . . . Kick . | . . . . . . . . . . . . . . . . . . . . . . . Crush 8 | . 1 3 1 . . . 3 . . . . . . . . . . . . . . . Escape Stasis 18 | . . . . . . . . . . . . . 18 . . . . . . . . . Rewire 17 | . . . . . . . . 6 . . . . . . . . . . . . . 11 Trap . | . . . . . . . . . . . . . . . . . . . . . . . Miscellaneous 1 | . . . . . . . . . . . . . . . . . . . . . 1 . Route ------- -11/Scrapyard -10/Materials -10/Mines (discovered 2 exits: *Mat x2) -9/Materials (discovered 5 exits: *Mat x3 / *Min / Sto) -9/Mines -9/Exiles -8/Mines -8/Materials -7/Factory (discovered 3 exits: *Fac / *Low x2) -7/Lower Caves -7/Lower Caves (discovered 2 exits: *Fac / *Dat) -7/Data Miner -6/Proximity Caves -6/Factory (discovered 3 exits: Fac / *Low x2) -6/Lower Caves -6/Lower Caves -6/Zion (discovered 2 exits: *Dee / *Pro) -6/Deep Caves -5/Proximity Caves -5/Factory (discovered 4 exits: *Fac x2 / *Upp x2) -5/Upper Caves -5/Upper Caves -5/Warlord History --------- Turn | Location | Event 4 | -11/Scrapyard | Discovered new exit (range 2) 61 | -11/Scrapyard | Entered Materials 131 | -10/Materials | Discovered new exit (range 13) 310 | -10/Materials | Build established: Mutant 448 | -10/Materials | Entered Mines 504 | -10/Mines | Discovered new exit (range 10) 749 | -10/Mines | Discovered new exit (range 3) 869 | -10/Mines | Learned location of Storage (-9) 1025 | -10/Mines | Assisted by bots powering up and referring to "LRC-V3" 1338 | -10/Mines | Entered Materials 1338 | -9/Materials | Accompanied by 1 ally 1338 | -9/Materials | Evolved 2 slots: Utility x2 1487 | -9/Materials | Identified exit to Mines 1487 | -9/Materials | Identified exit to Storage 2070 | -9/Materials | Discovered new exit (range 16) 2268 | -9/Materials | Repaired Imp. Assault Rifle 2305 | -9/Materials | Repaired Lgt. Treads 2332 | -9/Materials | Repaired Lgt. Treads 2819 | -9/Materials | Build established: Hauler-Mutant 3036 | -9/Materials | Discovered new exit (range 9) 3532 | -9/Materials | Discovered new exit (range 12) 3877 | -9/Materials | Repaired Med. Armor Plating 4177 | -9/Materials | Entered Mines 4187 | -9/Mines | Learned Materials trap positions 4255 | -9/Mines | Deemed a non-threat by the Exiles lab entrance 4255 | -9/Mines | Discovered new exit (range 5) 4263 | -9/Mines | Entered Exiles 4357 | -9/Exiles | Met 8R-AWN 4389 | -9/Exiles | Met EX-HEX 4559 | -9/Exiles | Discovered new exit (range 15) 4857 | -9/Exiles | Met EX-DEC 4865 | -9/Exiles | Learned location of Zion (-6) 5131 | -9/Exiles | Met EX-BIN 5155 | -9/Exiles | Aligned with FarCom system 5157 | -9/Exiles | Given EX-Vault access code 5205 | -9/Exiles | Opened EX-Vault 5217 | -9/Exiles | Found Field Lobotomy Kit 5220 | -9/Exiles | Found Superbattery 5225 | -9/Exiles | Found YOLO Cannon 5270 | -9/Exiles | Warned to stay clear of 0b10 Research branches 5514 | -9/Exiles | Attacked by the Exiles 5593 | -9/Exiles | Core integrity fell below 50% 5645 | -9/Exiles | Destroyed 8R-AWN 5665 | -9/Exiles | Lost 4 parts (1n1u2w) 5945 | -9/Exiles | Lost 5 parts (1p1n3u) 6056 | -9/Exiles | Destroyed EX-DEC 6102 | -9/Exiles | Destroyed EX-HEX 6129 | -9/Exiles | Destroyed EX-BIN 6137 | -9/Exiles | Found Prototype Energy Gun 6152 | -9/Exiles | Found Deploy-a-Sentry 6185 | -9/Exiles | Found Prototype Device 6185 | -9/Exiles | Identified System Purifier 6472 | -9/Exiles | Build established: Scavenger-Mutant 7208 | -9/Exiles | Build established: Hauler-Mutant 7227 | -9/Exiles | Stole four prototypes: Superbattery, YOLO Cannon, Field Lobotomy Kit, Deploy-a-Sentry 7227 | -9/Exiles | Entered Mines 7239 | -8/Mines | Core integrity fell below 20% 7626 | -8/Mines | Discovered new exit (range 13) 7787 | -8/Mines | Central database locked down 7847 | -8/Mines | Entered Materials 7847 | -8/Materials | Evolved 2 slots: Utility x2 7848 | -8/Materials | Loaded intel: 12 trap records 8117 | -8/Materials | Lost 3 parts (1p2u) 8387 | -8/Materials | Build established: Scavenger-Mutant 8776 | -8/Materials | Build established: Hauler-Mutant 9599 | -8/Materials | Lost 5 parts (2n1u2w) 9983 | -8/Materials | Discovered new exit (range 5) 10193 | -8/Materials | Core integrity fell below 50% 10337 | -8/Materials | Repaired Cold Fusion Reactor 10388 | -8/Materials | Repaired Lgt. Angular Momentum Engine 10457 | -8/Materials | Repaired Adv. Weapon Cycler 10669 | -8/Materials | Entered Factory 10669 | -7/Factory | Evolved 2 slots: Propulsion x2 10706 | -7/Factory | Identified AWS/EX-DEC 10868 | -7/Factory | Discovered new exit (range 15) 10872 | -7/Factory | Identified exit to Factory 10902 | -7/Factory | Identified exit to Lower Caves 10995 | -7/Factory | Central database locked down 11046 | -7/Factory | Repaired Imp. VTOL Module 11070 | -7/Factory | Fabricated Imp. Utility Shielding? 11140 | -7/Factory | Entered Lower Caves 11140 | -7/Lower Caves | Accompanied by 2 allies 11255 | -7/Lower Caves | Discovered new exit (range 4) 11259 | -7/Lower Caves | Identified exit to Lower Caves 11259 | -7/Lower Caves | Entered another Lower Caves area 11259 | -7/Lower Caves | Accompanied by 1 ally 11263 | -7/Lower Caves | Encountered a Warlord checkpoint 11267 | -7/Lower Caves | Build established: Hacker-Sprinter 11272 | -7/Lower Caves | Discovered exit to Factory (range 11) 11331 | -7/Lower Caves | Spotted 0J-L7A(f) 11333 | -7/Lower Caves | Encountered a Master Thief 11383 | -7/Lower Caves | Learned location of 1 exit from Factory 11397 | -7/Lower Caves | Attracted the attention of an 0b10 checkpoint 11408 | -7/Lower Caves | Discovered new exit (range 16) 11411 | -7/Lower Caves | Identified exit to Data Miner 11411 | -7/Lower Caves | Entered Data Miner 11411 | -7/Data Miner | Discovered new exit (range 6) 11413 | -7/Data Miner | Identified exit to Proximity Caves 11416 | -7/Data Miner | Met Data Miner 11421 | -7/Data Miner | Learned location of Section 7 (-3) 11421 | -7/Data Miner | Acquired the access code to Warlord's prototype stash 11425 | -7/Data Miner | Received God Mode back door access code from Data Miner 11435 | -7/Data Miner | Assimilated Data Miner with FLK Orb 11457 | -7/Data Miner | Entered Proximity Caves 11457 | -6/Proximity Caves | Accompanied by 1 ally 11476 | -6/Proximity Caves | Destroyed Data Miner 11480 | -6/Proximity Caves | Found Prototype Hackware 11487 | -6/Proximity Caves | Found Prototype Hackware 11502 | -6/Proximity Caves | Learned 4 Factory zone layouts 11628 | -6/Proximity Caves | Discovered exit to Factory (range 16) 11629 | -6/Proximity Caves | Attracted the attention of an 0b10 checkpoint 11632 | -6/Proximity Caves | Entered Factory 11632 | -6/Factory | Evolved 2 slots: Utility x2 11633 | -6/Factory | Identified exit to Lower Caves 11635 | -6/Factory | Identified exit to Factory 11649 | -6/Factory | Identified Deep Network Scanner 11650 | -6/Factory | Identified Quantum Router 11651 | -6/Factory | Allied Derelicts emerged from ambush trap array 11701 | -6/Factory | Repaired Imp. VTOL Module 12162 | -6/Factory | Fabricated Imp. Cesium-ion Thruster (x1) 12234 | -6/Factory | Fabricated Imp. Cesium-ion Thruster? 12273 | -6/Factory | Build established: Wizard-Sprinter 12744 | -6/Factory | Fabricated Imp. Cesium-ion Thruster (x1) 13244 | -6/Factory | Fabricated Imp. Cesium-ion Thruster (x1) 14244 | -6/Factory | Fabricated Imp. Cesium-ion Thruster (x1) 16171 | -6/Factory | Entered Lower Caves 16237 | -6/Lower Caves | Discovered new exit (range 14) 16239 | -6/Lower Caves | Learned Factory terminal intel 16241 | -6/Lower Caves | Identified exit to Lower Caves 16241 | -6/Lower Caves | Entered another Lower Caves area 16252 | -6/Lower Caves | Learned location of 1 exit from Factory 16288 | -6/Lower Caves | Encountered a Warlord checkpoint 16291 | -6/Lower Caves | Discovered new exit (range 11) 16307 | -6/Lower Caves | Identified exit to Zion 18124 | -6/Lower Caves | Entered Zion 18137 | -6/Zion | Discovered new exit (range 16) 18140 | -6/Zion | Received a visual enhancement algorithm 18146 | -6/Zion | Identified exit to Proximity Caves 18191 | -6/Zion | Learned location of Armory (-3) 18200 | -6/Zion | Gained Derelict followers 18222 | -6/Zion | Learned Factory security intel 18460 | -6/Zion | Discovered new exit (range 3) 18463 | -6/Zion | Identified exit to Deep Caves 18463 | -6/Zion | Saw the warning signs outside the Deep Caves entrance 18503 | -6/Zion | Entered Deep Caves 18503 | -6/Deep Caves | Accompanied by 2 allies 18635 | -6/Deep Caves | Attacked by Z-Imprinter 18643 | -6/Deep Caves | Assimilated TC-6P5(z) with FLK Orb 18646 | -6/Deep Caves | Assimilated 8Z-TQF(z) with FLK Orb 18660 | -6/Deep Caves | Allies destroyed Z-Imprinter 18662 | -6/Deep Caves | Found Prototype Device 18662 | -6/Deep Caves | Identified Zio. Metafield Generator 18684 | -6/Deep Caves | Lost 3 parts (1p1n1w) 18747 | -6/Deep Caves | Z-Facility disabled 18753 | -6/Deep Caves | Build established: Hacker-Sprinter 18837 | -6/Deep Caves | Found Prototype Protection 18898 | -6/Deep Caves | Discovered new exit (range 6) 18899 | -6/Deep Caves | Identified exit to Proximity Caves 18901 | -6/Deep Caves | Entered Proximity Caves 18916 | -5/Proximity Caves | Learned location of 1 exit from Factory 18999 | -5/Proximity Caves | Discovered exit to Factory (range 8) 19002 | -5/Proximity Caves | Entered Factory 19002 | -5/Factory | Evolved 2 slots: Power x1, Propulsion x1 19003 | -5/Factory | Identified exit to Upper Caves 19003 | -5/Factory | Identified exit to Factory 19005 | -5/Factory | Loaded intel: 20 terminal locations 19235 | -5/Factory | Discovered exit to Factory (range 5) 19278 | -5/Factory | Repaired Imp. Cesium-ion Thruster 19299 | -5/Factory | Build established: Wizard-Sprinter 19313 | -5/Factory | Repaired Imp. Cesium-ion Thruster 19397 | -5/Factory | Fabricated Nuclear Pulse Array? 19414 | -5/Factory | Identified Zio. Weapon Casing 19438 | -5/Factory | Entered Upper Caves 19446 | -5/Upper Caves | Learned Factory stockpile data 19515 | -5/Upper Caves | Discovered new exit (range 8) 19517 | -5/Upper Caves | Entered another Upper Caves area 19538 | -5/Upper Caves | Attracted the attention of an 0b10 checkpoint 19547 | -5/Upper Caves | Encountered a Warlord checkpoint 19553 | -5/Upper Caves | Spotted B-75 Beast 19589 | -5/Upper Caves | Discovered new exit (range 3) 19603 | -5/Upper Caves | Entered Warlord 19603 | -5/Warlord | Accompanied by 2 allies 19612 | -5/Warlord | System corruption cleaned by Quarantine Array 19635 | -5/Warlord | Met Warlord 19638 | -5/Warlord | Opened Warlord's prototype stash 19639 | -5/Warlord | Found Prototype Reactor 19639 | -5/Warlord | Identified Vortex Chain Reactor 19650 | -5/Warlord | Found Prototype Device 19650 | -5/Warlord | Identified Exp. Phase Shifter 19660 | -5/Warlord | Warlord's base attacked by MAIN.C 19660 | -5/Warlord | Found Prototype Device 19660 | -5/Warlord | Identified Exp. Focal Shield 19665 | -5/Warlord | Found Prototype Processor 19665 | -5/Warlord | Identified Spectral Analyzer 19699 | -5/Warlord | Build established: Hacker-Sprinter 19736 | -5/Warlord | Learned location of Testing (-2) 19736 | -5/Warlord | Learned Testing trap positions 19736 | -5/Warlord | Learned 4 Research zone layouts 19736 | -5/Warlord | Learned 4 Access zone layouts 19737 | -5/Warlord | Learned Factory terminal intel 19737 | -5/Warlord | Learned Factory repair station intel 19737 | -5/Warlord | Learned Research fabricator intel 19812 | -5/Warlord | Assimilated God Mode with FLK Orb 19819 | -5/Warlord | DAS Turret deployed 19830 | -5/Warlord | Attacked by Warlord forces 19830 | -5/Warlord | Spotted EU-6BP(K) 19830 | -5/Warlord | Spotted G9-I9H(K) 19922 | -5/Warlord | Spotted CU-GTG(g) 19963 | -5/Warlord | Core integrity fell below 50% 19990 | -5/Warlord | Core integrity fell below 20% 19997 | -5/Warlord | Destroyed by 0D-UJ0(Y) with Heavy Autocannon Last Messages --------------- 19955_ Dropped Superbattery. 19956_ Extracted 91 energy. 19956_ Destroyed Flexi-carbon Leg. 19957_ Extracted 5 energy. 19957_ Imp. Cesium-ion Thruster destroyed. 19958_ Katana follow-up attack on J1-ELY(l). 19959_ Extracted 8 energy. 19960_ ANNOUNCEMENT: Detected 3 Grunt squads, 1 Swarmer squad. 19962_ Extracted 3 energy. 19967_ Exp. Focal Shield destroyed. 19967_ Power Sword destroyed. 19968_ System corrupted: Energy discharge (-34). 19968_ Extracted 34 energy. 19969_ J1-ELY(l) destroyed. 19971_ Acquired Superbattery. 19973_ Door malfunctions. 19974_ Penetrated by HV Slug. 19974_ PQ-4QC(g) destroyed. 19980_ Acquired Imp. Cesium-ion Thruster. 19995_ 91-56B(g) destroyed. Map ----- +----------------------------------------------------+ | ???????????????????????????????????????????????? | | ???????????????????????????????????????????????? | | ???????????????????????????????????????????????? | | ???????????????????????????????????????????????? | | ???????????????????????????????????????????????? | | ???????????????????????????????????????????????? | | ???????????????????????????????????????????????? | | ????????????????????????##########?????????????? | | ????????????????????????""""""""""?????????????? | | ???????????????????????"" """"""?????????????? | | ???????????????????????"""X ""????????????? | | ?????????????????????#""" ""#???????????? | | ???????????#########?# " ""#???????????? | | ???????????#"""""""#?? ""#???????????? | | ???????????#" "#???"""] ""#???????????? | | ???????????#" "#???"""] "#???????????? | | ???????????# "#??"""" #??#+#??????? | | ???????????# """"#????""""" #??# #??????? | | ???????????# #????######### #??# #??????? | | ???????????#######+############"#++#??# #??????? | | ???????????????# # #??# #??????? | | ??#########????# # #??# ####### | | ??#"""""""#????# # #??# / | | ??#"""X"""#????# #X###############?# #### | | ??#"X X"#????# ##### #######"##### #???# | | ??#"" ""#????# @ g gp[%i! ###?# | | ??#"" ""#????# d ######## #???? | | ??### ###????# Y g #???####+##### | | ????###+#####??# g# ###+### ###+ ###### | | ??????# #??# #### ! ## # ## | | ??????# #??# #??# ## # ## | | ?######### ##?# #??#| ## ! ! % ## | | # # ### ##?#|&/## %% % = ## " "" " | | ?? """"" + ### #?###### *=*!=! ## """""" | | ?? """"" # #??????# %*%=% ## """" | | ?? """"" # #??????# ! [ ## | | ?? ###### #????#?# ###+###### | | ? """"" #????# ##?????# ##### ##"#?# | | ? """"" #????######"##??### ###### ### | | ?? """"" #??????#####"#????# # #### | | ???? #??????# ##????# | | ?????#####??????# #???#?# #### | | ???????#####????# #?#??## ######## ###?### | | ???????# ###### ###### #?#############" | | ???????# #?# X# ! # | | ???????# ### ### =# | | ??????########+## ### =# | | ??????# # """ """ ### =# | | ??????# # """ """ #?# # ! =# | | ??????# # """ """ #?# ######### | +----------------------------------------------------+ Best States ------------- Heat Dissipation 66 Energy Generation 55 Energy Capacity 2700 Matter Stores 300 Matter Capacity 300 Sight Range 16 Robot Scan Range 20 Terrain Scan Density 10 Armor Coverage 475 Resistance: KI 30 Utility Shielding 66 Weapon Shielding 100 Weapon Cycling 25 Phase Shifting 20 Evasion (%) 97 Targeting Accuracy 8 Core Analysis 6 Recoil Reduction 2 Offensive Hacking 45 Defensive Hacking 25 Item Schematics ----------------- Imp. Flight Unit | -9/Materials | Scanalyzed Med. Storage Unit | -9/Materials | Scanalyzed Imp. VTOL Module | -8/Materials | Scanalyzed Adv. Weapon Cycler | -8/Materials | Scanalyzed Adv. Core Analyzer | -8/Materials | Scanalyzed Imp. Utility Shielding | -7/Factory | Hacked Combat Drone Bay | -7/Data Miner | Free Lgt. Regenerative Plating | -7/Data Miner | Free Exp. Flexi-carbon Leg | -7/Data Miner | Free Exp. Sensor Array | -7/Data Miner | Free Exp. Terrain Scan Processor | -7/Data Miner | Free Exp. Targeting Computer | -7/Data Miner | Free Tactical Coordination Suite | -7/Data Miner | Free Exp. ECM Suite | -7/Data Miner | Free Mni. Smartbomb Launcher | -7/Data Miner | Free Imp. Cesium-ion Thruster | -6/Factory | Hacked Imp. System Shield | -6/Factory | Hacked Nuclear Pulse Array | -6/Factory | Hacked Field Propulsion Array | -5/Factory | Hacked Robot Schematics ------------------ S-27 Virus | -7/Data Miner | Free G-50 Soldier | -7/Data Miner | Free L-41 Fighter | -7/Data Miner | Free P-70 Sage | -7/Data Miner | Free I-36 Angel | -7/Data Miner | Free I-47 Archangel | -7/Data Miner | Free Fabricated ------------ Imp. Utility Shielding | x2 | -7/Factory Imp. Cesium-ion Thruster | x1 | -6/Factory Imp. Cesium-ion Thruster | x1 | -6/Factory Imp. Cesium-ion Thruster | x1 | -6/Factory Imp. Cesium-ion Thruster | x1 | -6/Factory Imp. Cesium-ion Thruster | x1 | -6/Factory Nuclear Pulse Array | x2 | -5/Factory Alien Tech Used ----------------- None Achievements -------------- None Challenges ------------ None Game ------ Seed DeliveryContainmentMeganuke Manual? 0 Play Time 03:34:11 Cumulative 706.8 hours Start 2020.06.01 @ 11:46:00 End 2020.06.23 @ 11:54:22 Sessions 5 Manual Loads 0 Difficulty Rogue Special Mode None Game No. 446 Rogue 446 Adventurer 0 Explorer 0 Win Type - Total 106 Types 72/6/8/10/5/1/4 Lore% 97 Gallery% 95 Achievement% 80 Wizard Run 0 Options --------- ASCII 0 Keyboard 0 Movement Numpad Keybinds 0 Fullscreen 2 Font 18/SmallcapsGlow Map View 76x50 Tactical HUD 1 Map Filters NONE Filters NONE Steam 1 RUN: 7795331e-96ea-445c-ab19-d40e2491c9cc